fUSD/lending_fUSD_20260702
["ID","MTS","AMOUNT","RATE_DAILY","PERIOD"]
[426887197,1782984633000,-500.0,0.00029836,5]
[426887194,1782984633000,-500.0,0.00029836,5]
[426887192,1782984633000,-500.0,0.00029836,5]
[426887201,1782984633000,-500.0,0.00029836,5]
[426887199,1782984633000,-500.0,0.00029836,5]
[426887198,1782984633000,-616.0,0.00029836,5]
[426887203,1782984633000,-500.0,0.00029836,5]
[426887202,1782984633000,-500.0,0.00029836,5]
[426887196,1782984633000,-500.0,0.00029836,5]
[426887200,1782984633000,-500.0,0.00029836,5]
[426887204,1782984633000,-500.0,0.00029836,5]
[426887152,1782984633000,-684.0,0.00029,5]
[426887177,1782984633000,-272.40828572,0.00029662,2]
[426887178,1782984633000,-199.51305285,0.00029662,2]
[426887191,1782984633000,-500.0,0.00029836,5]
[426887176,1782984633000,-368.31720228,0.00029662,2]
[426887175,1782984633000,-201.00584324,0.00029662,2]
[426887154,1782984633000,-672.0,0.00029,5]
[426887144,1782984633000,-662.0,0.00029,5]
[426887153,1782984633000,-684.0,0.00029,5]
[426887155,1782984633000,-681.0,0.00029,5]
[426887149,1782984633000,-684.0,0.00029,5]
[426887151,1782984633000,-196.60447268,0.00029,5]
[426887168,1782984633000,-362.51667263,0.00029398,2]
[426887158,1782984633000,-153.0,0.00029,4]
[426887157,1782984633000,-162.99,0.00029,2]
[426887159,1782984633000,-262.15,0.00029,7]
[426887162,1782984633000,-223.763659,0.00029099,14]
[426887161,1782984633000,-183.5,0.00029,7]
[426887156,1782984633000,-529.5392682,0.00029,5]
[426887172,1782984633000,-2196.93832493,0.000295,2]
[426887167,1782984633000,-703.87023237,0.00029317,2]
[426887164,1782984633000,-2196.93832493,0.000292,2]
[426887163,1782984633000,-362.51667263,0.00029124,2]
[426887165,1782984633000,-207.957647,0.00029239,14]
[426887166,1782984633000,-245.3465,0.00029315,2]
[426887169,1782984633000,-207.957647,0.000294,14]
[426887171,1782984633000,-268.787005,0.000294,14]
[426887160,1782984633000,-1101.52073337,0.00029,2]
[426887170,1782984633000,-268.51639,0.000294,14]
[426887173,1782984633000,-150.0,0.00029534,2]
[426887174,1782984633000,-18624.20233629,0.00029582,2]
[426887245,1782984634000,-12499.98,0.0003,2]
[426887235,1782984634000,-12499.99,0.0003,2]
[426887241,1782984634000,-12499.98,0.0003,2]
[426887248,1782984634000,-12499.98,0.0003,2]
[426887240,1782984634000,-9999.99,0.0003,2]
[426887236,1782984634000,-12499.98,0.0003,2]
[426887238,1782984634000,-12499.98,0.0003,2]
[426887237,1782984634000,-800.0,0.0003,2]
[426887234,1782984634000,-9999.98,0.0003,2]
[426887231,1782984634000,-800.0,0.0003,2]
[426887239,1782984634000,-12499.98,0.0003,2]
[426887243,1782984634000,-12500.0,0.0003,2]
[426887244,1782984634000,-12499.98,0.0003,2]
[426887260,1782984634000,-9999.99,0.0003,2]
[426887242,1782984634000,-754.49,0.0003,2]
[426887247,1782984634000,-2499.96,0.0003,2]
[426887249,1782984634000,-12499.98,0.0003,2]
[426887250,1782984634000,-12499.97,0.0003,2]
[426887256,1782984634000,-800.0,0.0003,2]
[426887257,1782984634000,-2499.99,0.0003,2]
[426887253,1782984634000,-12499.99,0.0003,2]
[426887255,1782984634000,-12499.99,0.0003,2]
[426887254,1782984634000,-9999.99,0.0003,2]
[426887251,1782984634000,-2499.97,0.0003,2]
[426887252,1782984634000,-9999.96,0.0003,2]
[426887246,1782984634000,-800.0,0.0003,2]
[426887232,1782984634000,-12500.0,0.0003,2]
[426887205,1782984634000,-500.0,0.00029836,5]
[426887233,1782984634000,-12500.0,0.0003,2]
[426887209,1782984634000,-150.0,0.00029836,5]
[426887208,1782984634000,-630.90347374,0.00029836,5]
[426887207,1782984634000,-500.0,0.00029836,5]
[426887213,1782984634000,-276.98799893,0.00029836,5]
[426887210,1782984634000,-150.0,0.00029836,5]
[426887206,1782984634000,-500.0,0.00029836,5]
[426887211,1782984634000,-500.0,0.00029836,5]
[426887212,1782984634000,-500.0,0.00029836,5]
[426887214,1782984634000,-500.0,0.00029836,5]
[426887215,1782984634000,-500.0,0.00029836,5]
[426887219,1782984634000,-500.0,0.00029836,5]
[426887218,1782984634000,-500.0,0.00029836,5]
[426887220,1782984634000,-250.0,0.00029836,2]
[426887221,1782984634000,-202.67610635,0.00029836,5]
[426887224,1782984634000,-500.0,0.00029836,5]
[426887216,1782984634000,-500.0,0.00029836,5]
[426887217,1782984634000,-250.0,0.00029836,2]
[426887226,1782984634000,-270.42081851,0.00029836,2]
[426887223,1782984634000,-250.0,0.00029836,2]
[426887222,1782984634000,-500.0,0.00029836,5]
[426887225,1782984634000,-150.0,0.00029836,5]
[426887228,1782984634000,-1716.51600684,0.000299,2]
[426887227,1782984634000,-329.57946474,0.00029836,5]
[426887258,1782984634000,-14999.99,0.0003,2]
[426887229,1782984634000,-362.51667263,0.00029946,2]
[426887230,1782984634000,-500.0,0.00029999,7]
[426887259,1782984634000,-25000.0,0.0003,2]
[426887293,1782984634000,-163.65,0.00030411,120]
[426887264,1782984634000,-500.0,0.00030028,19]
[426887291,1782984634000,-286.81067513,0.00030401,2]
[426887296,1782984634000,-209.36548349,0.00030459,5]
[426887295,1782984634000,-174.122,0.00030413,26]
[426887300,1782984634000,-800.0,0.000305,2]
[426887305,1782984634000,-420.93917222,0.00030549,28]
[426887298,1782984634000,-1716.51600684,0.00030495,2]
[426887294,1782984634000,-3445.561,0.00030413,26]
[426887299,1782984634000,-12500.0,0.000305,2]
[426887297,1782984634000,-362.51667263,0.00030494,2]
[426887302,1782984634000,-500.0,0.00030505,7]
[426887304,1782984634000,-644.82,0.0003051,2]
[426887301,1782984634000,-2000.0,0.000305,2]
[426887303,1782984634000,-9000.0,0.00030506,5]
[426887306,1782984634000,-569.5371,0.00030549,28]
[426887309,1782984634000,-1278.0,0.00030688,2]
[426887313,1782984634000,-2000.0,0.00030699,8]
[426887312,1782984634000,-1231.0,0.00030688,2]
[426887310,1782984634000,-223.0,0.00030688,2]
[426887314,1782984634000,-1805.0,0.000307,2]
[426887308,1782984634000,-350.0,0.00030642,2]
[426887311,1782984634000,-1362.0,0.00030688,2]
[426887315,1782984634000,-204.6,0.00030702,30]
[426887316,1782984634000,-693.43939806,0.00030749,2]
[426887317,1782984634000,-508.6,0.0003075,7]
[426887265,1782984634000,-159.50611921,0.00030049,28]
[426887287,1782984634000,-297.33188532,0.00030401,2]
[426887289,1782984634000,-213.85530518,0.00030401,2]
[426887307,1782984634000,-390.28,0.000306,30]
[426887290,1782984634000,-387.7903536,0.00030401,2]
[426887288,1782984634000,-252.99336457,0.00030401,2]
[426887261,1782984634000,-24999.98,0.0003,2]
[426887266,1782984634000,-281.38770114,0.00030049,28]
[426887268,1782984634000,-500.0,0.00030124,7]
[426887262,1782984634000,-12499.98,0.0003,2]
[426887269,1782984634000,-12500.0,0.00030125,2]
[426887267,1782984634000,-3610.89123925,0.0003011,2]
[426887270,1782984634000,-163.42970685,0.00030125,5]
[426887263,1782984634000,-12306.3,0.0003,2]
[426887271,1782984634000,-2000.0,0.00030135,15]
[426887273,1782984634000,-372.49695097,0.00030177,2]
[426887274,1782984634000,-5864.50644178,0.00030177,2]
[426887272,1782984634000,-361.56980077,0.00030137,2]
[426887283,1782984634000,-2000.0,0.00030332,25]
[426887278,1782984634000,-160.0,0.000302,7]
[426887275,1782984634000,-18624.20233629,0.00030181,2]
[426887276,1782984634000,-256.31590034,0.00030196,7]
[426887282,1782984634000,-167.97861424,0.00030308,2]
[426887280,1782984634000,-12500.0,0.0003025,2]
[426887279,1782984634000,-362.51667263,0.0003022,2]
[426887281,1782984634000,-12499.97,0.0003025,2]
[426887284,1782984634000,-12500.0,0.00030375,2]
[426887285,1782984634000,-33361.7046,0.000304,2]
[426887286,1782984634000,-2000.0,0.000304,2]
[426887277,1782984634000,-1716.51600684,0.00030197,2]
[426887292,1782984634000,-210.06142759,0.00030401,2]
[426887338,1782984635000,-2000.0,0.00030947,4]
[426887336,1782984635000,-497.57551064,0.00030912,2]
[426887346,1782984635000,-500.0,0.00030999,7]
[426887335,1782984635000,-74984.7046334,0.00030912,2]
[426887334,1782984635000,-500.0,0.00030911,60]
[426887342,1782984635000,-2000.0,0.00030999,5]
[426887348,1782984635000,-1000.0,0.00031,7]
[426887349,1782984635000,-317.0,0.00031,2]
[426887343,1782984635000,-2000.0,0.00030999,14]
[426887347,1782984635000,-17468.4183712,0.00031,10]
[426887341,1782984635000,-2000.0,0.00030999,10]
[426887337,1782984635000,-500.0,0.00030929,21]
[426887340,1782984635000,-2000.0,0.00030999,7]
[426887330,1782984635000,-400.0,0.000309,11]
[426887318,1782984635000,-362.51667263,0.00030768,2]
[426887332,1782984635000,-500.0,0.00030911,120]
[426887339,1782984635000,-2000.0,0.00030999,2]
[426887331,1782984635000,-500.0,0.00030911,14]
[426887329,1782984635000,-2000.0,0.000309,2]
[426887328,1782984635000,-200.0,0.00030891,2]
[426887324,1782984635000,-252.67199632,0.00030812,2]
[426887325,1782984635000,-2469.5646774,0.00030812,2]
[426887321,1782984635000,-71034.6625495,0.00030812,2]
[426887326,1782984635000,-16289.564805,0.00030812,2]
[426887327,1782984635000,-2000.0,0.00030837,3]
[426887323,1782984635000,-1458.9446825,0.00030812,2]
[426887322,1782984635000,-64018.0365643,0.00030812,2]
[426887320,1782984635000,-1716.51600684,0.00030792,2]
[426887344,1782984635000,-2000.0,0.00030999,30]
[426887333,1782984635000,-500.0,0.00030911,120]
[426887345,1782984635000,-2000.0,0.00030999,11]
[426887319,1782984635000,-18624.20233629,0.0003078,2]
[426887355,1782984635000,-733.0,0.00031,2]
[426887350,1782984635000,-1030.0,0.00031,20]
[426887376,1782984635000,-5800.0,0.0003125,2]
[426887381,1782984635000,-994.49927945,0.000313,2]
[426887378,1782984635000,-1011.42102114,0.00031255,16]
[426887380,1782984635000,-2000.0,0.000313,2]
[426887377,1782984635000,-2306.2362667,0.00031252,2]
[426887375,1782984635000,-350.0,0.00031242,2]
[426887373,1782984635000,-150.0,0.00031206,5]
[426887374,1782984635000,-1216.0,0.00031223,5]
[426887371,1782984635000,-350.0,0.00031123,2]
[426887368,1782984635000,-1716.51600684,0.0003109,2]
[426887366,1782984635000,-362.51667263,0.00031042,2]
[426887363,1782984635000,-251.0,0.0003102,2]
[426887365,1782984635000,-952.0,0.0003104,5]
[426887370,1782984635000,-500.0,0.0003111,7]
[426887379,1782984635000,-1328.10996114,0.00031255,16]
[426887369,1782984635000,-186.81068019,0.000311,6]
[426887354,1782984635000,-160.0,0.00031,10]
[426887367,1782984635000,-300.0,0.0003107,2]
[426887352,1782984635000,-310.0,0.00031,2]
[426887353,1782984635000,-221.82,0.00031,2]
[426887356,1782984635000,-150.0,0.00031011,2]
[426887357,1782984635000,-251.0,0.0003102,2]
[426887351,1782984635000,-1001.0,0.00031,20]
[426887358,1782984635000,-279.4681998,0.0003102,2]
[426887360,1782984635000,-251.0,0.0003102,2]
[426887361,1782984635000,-251.0,0.0003102,2]
[426887372,1782984635000,-252.6719963,0.00031193,2]
[426887362,1782984635000,-251.0,0.0003102,2]
[426887364,1782984635000,-350.0,0.00031026,4]
[426887359,1782984635000,-251.0,0.0003102,2]
[426887408,1782984638000,-290.84887371,0.0003135,2]
[426887414,1782984638000,-500.0,0.00031356,60]
[426887407,1782984638000,-592.58807445,0.0003135,2]
[426887412,1782984638000,-535.56138164,0.00031356,60]
[426887422,1782984638000,-184.595,0.00031359,14]
[426887411,1782984638000,-164.19539735,0.00031355,30]
[426887423,1782984638000,-314.22038384,0.0003136,2]
[426887415,1782984638000,-222.24,0.00031359,14]
[426887420,1782984638000,-172.86,0.00031359,14]
[426887416,1782984638000,-222.24,0.00031359,14]
[426887419,1782984638000,-172.87,0.00031359,14]
[426887421,1782984638000,-150.15,0.00031359,14]
[426887418,1782984638000,-172.87,0.00031359,14]
[426887417,1782984638000,-222.24,0.00031359,14]
[426887424,1782984638000,-358.74990109,0.0003136,2]
[426887427,1782984638000,-1716.51600684,0.00031387,2]
[426887409,1782984638000,-673.39682784,0.0003135,2]
[426887413,1782984638000,-537.74883894,0.00031356,60]
[426887405,1782984638000,-7805.65847043,0.0003135,2]
[426887391,1782984638000,-727.22109776,0.00027397,10]
[426887406,1782984638000,-1261.01551446,0.0003135,2]
[426887388,1782984638000,-500.0,0.00024999,2]
[426887387,1782984638000,-157.27,0.00024658,2]
[426887389,1782984638000,-355.75393652,0.00024999,2]
[426887390,1782984638000,-157.27,0.00026484,7]
[426887397,1782984638000,-280.0,0.0003133,2]
[426887393,1782984638000,-3101.00284846,0.00029509,2]
[426887396,1782984638000,-362.51667263,0.00031316,2]
[426887395,1782984638000,-1005.50072055,0.000313,2]
[426887398,1782984638000,-438.0,0.00031336,2]
[426887392,1782984638000,-879.45890224,0.00027397,10]
[426887394,1782984638000,-270.02824361,0.00030137,2]
[426887401,1782984638000,-251.0,0.0003135,2]
[426887399,1782984638000,-251.0,0.0003135,2]
[426887400,1782984638000,-251.0,0.0003135,2]
[426887402,1782984638000,-251.0,0.0003135,2]
[426887404,1782984638000,-251.0,0.0003135,2]
[426887403,1782984638000,-251.0,0.0003135,2]
[426887410,1782984638000,-12180.49223911,0.0003135,2]
[426887426,1782984638000,-18624.20233629,0.00031379,2]
[426887428,1782984638000,-1049.67121808,0.000314,2]
[426887435,1782984638000,-500.0,0.00031499,120]
[426887451,1782984638000,-151.0,0.00031646,2]
[426887452,1782984638000,-493.34,0.00031673,7]
[426887456,1782984638000,-251.0,0.0003168,2]
[426887454,1782984638000,-251.0,0.0003168,2]
[426887457,1782984638000,-251.0,0.0003168,2]
[426887460,1782984638000,-152.61759342,0.00031688,2]
[426887458,1782984638000,-422.26604,0.0003168,7]
[426887455,1782984638000,-251.0,0.0003168,2]
[426887461,1782984638000,-500.0,0.00031699,7]
[426887459,1782984638000,-1716.51600684,0.00031685,2]
[426887463,1782984638000,-2000.0,0.000317,2]
[426887462,1782984638000,-1400.0,0.000317,11]
[426887466,1782984638000,-1900.0,0.000318,11]
[426887464,1782984638000,-1028.84592082,0.00031717,2]
[426887425,1782984638000,-924.0,0.00031373,5]
[426887467,1782984638000,-384.0,0.00031807,2]
[426887468,1782984638000,-438.0,0.00031835,2]
[426887453,1782984638000,-251.0,0.0003168,2]
[426887450,1782984638000,-900.0,0.000316,11]
[426887465,1782984638000,-183.0,0.00031725,2]
[426887447,1782984638000,-175.51104745,0.00031527,60]
[426887445,1782984638000,-226.61480465,0.00031507,15]
[426887430,1782984638000,-1049.67121807,0.000314,2]
[426887433,1782984638000,-310.30633323,0.00031489,2]
[426887429,1782984638000,-1049.67121807,0.000314,2]
[426887436,1782984638000,-500.0,0.00031499,120]
[426887434,1782984638000,-500.0,0.00031499,14]
[426887432,1782984638000,-20380.73159139,0.0003143,4]
[426887449,1782984638000,-362.51667263,0.0003159,2]
[426887448,1782984638000,-252.6719963,0.00031575,2]
[426887431,1782984638000,-179.2683589,0.000314,2]
[426887439,1782984638000,-150.0,0.000315,2]
[426887441,1782984638000,-933.17753453,0.000315,2]
[426887437,1782984638000,-500.0,0.00031499,60]
[426887442,1782984638000,-933.17753453,0.000315,2]
[426887440,1782984638000,-933.17753454,0.000315,2]
[426887444,1782984638000,-507.49219555,0.00031506,14]
[426887446,1782984638000,-447.0,0.00031524,3]
[426887438,1782984638000,-201.72662386,0.000315,2]
[426887443,1782984638000,-1000.0,0.000315,25]
[426887489,1782984639000,-1000.0,0.0003197,2]
[426887490,1782984639000,-1191.61497385,0.0003197,2]
[426887495,1782984639000,-500.0,0.00031999,14]
[426887491,1782984639000,-18624.20233629,0.00031978,2]
[426887492,1782984639000,-1716.51600684,0.00031982,2]
[426887494,1782984639000,-500.0,0.00031999,14]
[426887493,1782984639000,-500.0,0.00031999,14]
[426887497,1782984639000,-500.0,0.00031999,14]
[426887498,1782984639000,-500.0,0.00031999,120]
[426887496,1782984639000,-500.0,0.00031999,14]
[426887488,1782984639000,-500.0,0.0003197,2]
[426887501,1782984639000,-500.0,0.00031999,120]
[426887500,1782984639000,-500.0,0.00031999,120]
[426887487,1782984639000,-164.19539735,0.00031963,30]
[426887499,1782984639000,-500.0,0.00031999,120]
[426887480,1782984639000,-235.62081,0.000319,24]
[426887486,1782984639000,-200.0,0.0003196,2]
[426887481,1782984639000,-753.74143178,0.000319,2]
[426887470,1782984639000,-150.0,0.00031841,2]
[426887469,1782984639000,-438.0,0.0003184,2]
[426887511,1782984639000,-500.0,0.00031999,7]
[426887474,1782984639000,-457.90611043,0.00031857,23]
[426887473,1782984639000,-1756.69776802,0.00031841,2]
[426887472,1782984639000,-150.0,0.00031841,2]
[426887483,1782984639000,-184.595,0.00031907,14]
[426887476,1782984639000,-438.0,0.00031868,2]
[426887478,1782984639000,-2300.0,0.000319,11]
[426887477,1782984639000,-438.0,0.00031871,2]
[426887479,1782984639000,-235.62081,0.000319,24]
[426887482,1782984639000,-150.15,0.00031907,14]
[426887484,1782984639000,-438.0,0.00031916,2]
[426887485,1782984639000,-252.6719963,0.00031956,2]
[426887475,1782984639000,-362.51667263,0.00031864,2]
[426887503,1782984639000,-500.0,0.00031999,7]
[426887471,1782984639000,-2494.61451243,0.00031841,2]
[426887504,1782984639000,-500.0,0.00031999,7]
[426887526,1782984639000,-473.02,0.00032,10]
[426887525,1782984639000,-585.7143991,0.00031999,60]
[426887528,1782984639000,-184609.68169914,0.00032,2]
[426887527,1782984639000,-1000.0,0.00032,120]
[426887530,1782984639000,-1771.90754046,0.00032,2]
[426887531,1782984639000,-5999.999999,0.00032,2]
[426887522,1782984639000,-500.0,0.00031999,60]
[426887532,1782984639000,-150.0,0.00032,2]
[426887533,1782984639000,-1494292.37429254,0.00032,30]
[426887535,1782984639000,-602.5,0.00032,30]
[426887534,1782984639000,-329932.58207501,0.00032,30]
[426887536,1782984639000,-7801.93599774,0.00032,30]
[426887538,1782984639000,-35567.55727636,0.00032,30]
[426887537,1782984639000,-1733.58218583,0.00032,30]
[426887529,1782984639000,-5000.0,0.00032,2]
[426887523,1782984639000,-500.0,0.00031999,60]
[426887502,1782984639000,-500.0,0.00031999,120]
[426887520,1782984639000,-500.0,0.00031999,60]
[426887518,1782984639000,-516.9,0.00031999,7]
[426887505,1782984639000,-500.0,0.00031999,120]
[426887508,1782984639000,-500.0,0.00031999,7]
[426887506,1782984639000,-500.0,0.00031999,7]
[426887509,1782984639000,-500.0,0.00031999,7]
[426887507,1782984639000,-154.04320656,0.00031999,120]
[426887512,1782984639000,-500.0,0.00031999,7]
[426887510,1782984639000,-500.0,0.00031999,7]
[426887517,1782984639000,-500.0,0.00031999,7]
[426887519,1782984639000,-500.0,0.00031999,60]
[426887514,1782984639000,-500.0,0.00031999,7]
[426887521,1782984639000,-500.0,0.00031999,60]
[426887513,1782984639000,-500.0,0.00031999,7]
[426887516,1782984639000,-500.0,0.00031999,7]
[426887524,1782984639000,-500.0,0.00031999,60]
[426887515,1782984639000,-465.78,0.00031999,7]
[426887544,1782984640000,-5111.08673616,0.00032,30]
[426887541,1782984640000,-755.47877664,0.00032,30]
[426887542,1782984640000,-3593.99467973,0.00032,30]
[426887540,1782984640000,-291.51088287,0.00032,30]
[426887543,1782984640000,-342.108,0.00032,30]
[426887551,1782984640000,-5385.86486231,0.00032,30]
[426887545,1782984640000,-446.776808,0.00030163,2]
[426887547,1782984640000,-451.58738955,0.00030163,2]
[426887548,1782984640000,-765.2425548,0.00030163,2]
[426887549,1782984640000,-299.70473472,0.00030163,2]
[426887550,1782984640000,-166.33513769,0.00030163,2]
[426887546,1782984640000,-971.3562237,0.00030163,2]
[426887585,1782984643000,-2192.21151581,0.00032,30]
[426887579,1782984643000,-1500.0,0.00027397,2]
[426887580,1782984643000,-26116.8839618,0.00032,30]
[426887581,1782984643000,-19722.37311992,0.00032,30]
[426887582,1782984643000,-426.18367495,0.00032,30]
[426887583,1782984643000,-1362.38379126,0.00032,30]
[426887586,1782984643000,-1401.63689554,0.00032,30]
[426887591,1782984643000,-302.23932663,0.00032,30]
[426887589,1782984643000,-7838.75262192,0.00032,30]
[426887588,1782984643000,-1501.87147558,0.00032,30]
[426887590,1782984643000,-453.3,0.00032,30]
[426887587,1782984643000,-3891.37130719,0.00032,30]
[426887592,1782984643000,-0.55470206,0.00032,30]
[426887594,1782984643000,-458.82080209,0.00032,30]
[426887593,1782984643000,-38.31139013,0.00032,30]
[426887584,1782984643000,-6038.91849735,0.00032,30]
[426887597,1782984646000,-3101.00284846,0.00030816,2]
[426887596,1782984646000,-405.77423737,0.00024999,2]
[426887598,1782984646000,-4310.10517656,0.00031265,2]
[426887600,1782984728000,150.0,7.945e-05,2]
[426887601,1782984918000,501.27830051,0.00028899,120]
[426887615,1782985192000,208.82,0.00027487,120]
[426887616,1782985200000,265.419946,0.00029996,120]
[426887621,1782985338000,500.0,0.00029999,120]
[426887620,1782985338000,500.0,0.00028899,120]
[426887622,1782985368000,500.0,0.00028899,120]
[426887623,1782985369000,154.04320656,0.00029999,120]
[426887644,1782985484000,153.17933804,0.00015,2]
[426887645,1782985484000,1917.873327,0.00015,2]
[426887646,1782985484000,1660.76500959,0.00015,2]
[426887648,1782985484000,536.04694816,0.00015,2]
[426887647,1782985484000,2017.39874512,0.00015,2]
[426887649,1782985484000,1835.976,0.00015,2]
[426887651,1782985484000,2099.91410344,0.00015,2]
[426887650,1782985484000,3311.7873741,0.00015,2]
[426887653,1782985484000,1735.09224735,0.00015,2]
[426887652,1782985484000,2517.14721796,0.00015,2]
[426887660,1782985484000,3311.7873741,0.00015,2]
[426887658,1782985484000,2104.8813,0.00015,2]
[426887659,1782985484000,1089.84152371,0.00015,2]
[426887656,1782985484000,2103.76053469,0.00015,2]
[426887654,1782985484000,1988.98817235,0.00015,2]
[426887657,1782985484000,1812.256965,0.00015,2]
[426887655,1782985484000,2159.67077526,0.00015,2]
[426887663,1782985708000,186.0,0.00028227,120]
[426887668,1782985753000,-153.0,0.00014999,2]
[426887667,1782985753000,-181.3,0.00014999,2]
[426887665,1782985753000,-42.22048957,0.00014999,2]
[426887666,1782985753000,-110.77951043,0.00014999,2]
[426887664,1782985753000,-390.34397431,0.00014999,2]
[426887669,1782985754000,-54.92048957,0.00014999,2]
[426887671,1782985754000,-38.54834152,0.00014999,2]
[426887670,1782985754000,-188.08951043,0.00014999,2]
[426887672,1782985754000,-114.45086747,0.00014999,2]
[426887673,1782985754000,-160.51904061,0.00014999,2]
[426887674,1782985754000,-581.72504232,0.00014999,2]
[426887675,1782985754000,-582.79621565,0.00015,2]
[426887678,1782985754000,-182.63811134,0.00015,2]
[426887679,1782985754000,-151.0,0.00015,2]
[426887680,1782985754000,-296.38188866,0.00015,2]
[426887681,1782985754000,-919.31312844,0.00015,2]
[426887682,1782985754000,-153.0,0.00015,2]
[426887683,1782985754000,-302.6,0.00015,2]
[426887676,1782985754000,-153.0,0.00015,2]
[426887677,1782985754000,-151.0,0.00015,2]
[426887687,1782985755000,-532.05311223,0.00015,2]
[426887686,1782985755000,-220.26572649,0.00015,2]
[426887685,1782985755000,-536.58458871,0.00015,2]
[426887684,1782985755000,-316.72351534,0.00015,2]
[426887691,1782985792000,-3961.91471321,0.00015,2]
[426887690,1782985792000,-1458.78331894,0.00015,2]
[426887689,1782985792000,-3961.91471321,0.00015,2]
[426887693,1782985792000,-3961.91471321,0.00015,2]
[426887694,1782985792000,-3961.91471321,0.00015,2]
[426887692,1782985792000,-3961.91471321,0.00015,2]
[426887695,1782985792000,-3961.91471321,0.00015,2]
[426887696,1782985793000,-3961.91471321,0.00015,2]
[426887697,1782985793000,-3961.91471321,0.00015,2]
[426887723,1782985832000,-153.0,0.00024,2]
[426887721,1782985832000,-155.0,0.00024,2]
[426887731,1782985832000,-5370.75548986,0.00024558,2]
[426887733,1782985832000,-173.58,0.00024658,2]
[426887719,1782985832000,-1162.87606817,0.00022271,2]
[426887726,1782985832000,-5509.68306645,0.00024158,2]
[426887725,1782985832000,-4130.76,0.00024073,2]
[426887728,1782985832000,-490.35,0.00024262,2]
[426887727,1782985832000,-1852.42,0.00024177,2]
[426887729,1782985832000,-5000.0,0.00024325,2]
[426887717,1782985832000,-1362.6162,0.000209,7]
[426887705,1782985832000,-6267.64629606,0.00015,2]
[426887720,1782985832000,-454.45,0.00022466,2]
[426887715,1782985832000,-1007.08097547,0.000209,7]
[426887710,1782985832000,-1162.87606817,0.00019864,2]
[426887711,1782985832000,-381.61232958,0.000209,7]
[426887709,1782985832000,-1162.87606817,0.00017456,2]
[426887707,1782985832000,-1162.87606819,0.00015049,2]
[426887706,1782985832000,-357402.274471,0.00015,2]
[426887704,1782985832000,-24468.14452247,0.00015,2]
[426887702,1782985832000,-109192.93581885,0.00015,2]
[426887703,1782985832000,-817.79339661,0.00015,2]
[426887701,1782985832000,-900.0,0.00015,2]
[426887708,1782985832000,-241.0,0.00015149,2]
[426887714,1782985832000,-673.20938334,0.000209,7]
[426887736,1782985832000,-200.0,0.00024748,2]
[426887743,1782985832000,-943.03,0.00025,2]
[426887737,1782985832000,-166.68,0.00024795,2]
[426887762,1782985832000,-727.49530318,0.000258,2]
[426887760,1782985832000,-1043108.35825052,0.000258,2]
[426887759,1782985832000,-440.13768202,0.0002579,2]
[426887754,1782985832000,-469.36,0.00025396,2]
[426887753,1782985832000,-150.0,0.00025262,2]
[426887751,1782985832000,-440.0,0.000251,7]
[426887752,1782985832000,-24399.45,0.00025179,2]
[426887750,1782985832000,-186.0,0.00025091,2]
[426887755,1782985832000,-5370.75548978,0.00025449,2]
[426887756,1782985832000,-164.83,0.00025564,2]
[426887757,1782985832000,-999.99,0.00025786,2]